bitfinex/quotes_ETHUSD_20250220
["timestamp","ask_amount","ask_price","bid_price","bid_amount"]
[1740038833848,3.65214,2738.2,2737.8,4.69136]
[1740038834248,7.30428,2738.2,2737.8,1.0388]
[1740038834450,3.65214,2738.2,2737.8,1.0388]
[1740038835024,1.177014,2738.2,2737.8,1.0388]
[1740038835274,3.6523,2738.0,2737.9,0.26]
[1740038835564,3.6523,2738.0,2737.5,0.7847]
[1740038835766,3.65247,2737.9,2737.8,0.26]
[1740038836068,3.65283,2737.6,2737.5,0.7847]
[1740038836264,3.65283,2737.6,2737.5,0.26]
[1740038836460,3.65262,2737.8,2737.5,0.26]
[1740038836665,7.10482,2737.8,2737.5,0.26]
[1740038836963,3.65277,2737.7,2737.5,0.26]
[1740038837165,3.65283,2737.6,2737.5,0.26]
[1740038840665,4.8015067,2737.7,2737.5,0.26]
[1740038842439,1.1488067,2737.7,2737.2,0.762]
[1740038842640,3.65318,2737.4,2737.0,0.7582]
[1740038842841,3.65297,2737.5,2737.0,0.7582]
[1740038842842,3.65323,2737.3,2737.1,0.26]
[1740038843359,4.41517,2737.5,2737.1,0.26]
[1740038845067,4.41517,2737.5,2737.0,0.7582]
[1740038845272,3.65318,2737.4,2737.1,0.26]
[1740038845569,4.41517,2737.5,2737.1,0.26]
[1740038845761,5.221962,2737.5,2737.1,0.26]
[1740038845962,3.65312,2737.4,2737.1,0.26]
[1740038846585,5.221962,2737.5,2737.1,0.26]
[1740038846792,3.65324,2737.3,2737.1,0.26]
[1740038848587,3.65336,2737.2,2736.7,4.43706]
[1740038848768,3.65336,2737.2,2737.1,0.26]
[1740038852970,3.65336,2737.2,2737.0,0.26]
[1740038853692,7.10556,2737.2,2737.0,0.26]
[1740038853991,3.65352,2737.1,2737.0,0.26]
[1740038854166,5.531028,2737.1,2736.8,0.26]
[1740038854500,9.184618,2737.1,2736.8,0.26]
[1740038854692,5.531028,2737.1,2736.8,0.26]
[1740038856085,5.531028,2737.1,2736.6,3.65416]
[1740038856283,5.531028,2737.1,2736.7,0.26]
[1740038856472,4.5519728,2737.0,2736.7,0.26]
[1740038857167,11.6579128,2737.0,2736.7,0.26]
[1740038857373,8.0041728,2737.0,2736.7,0.26]
[1740038857895,11.6579228,2737.0,2736.7,0.26]
[1740038858058,8.0041728,2737.0,2736.7,0.26]
[1740038861497,8.0041728,2737.0,2736.9,3.65376]
[1740038861498,3.4522,2737.0,2736.9,3.65376]
[1740038864102,3.4522,2737.0,2736.9,4.47396]
[1740038864704,3.4522,2737.6,2737.5,3.65296]
[1740038864998,0.7687,2738.1,2737.7,3.6527]
[1740038865203,3.4522,2738.3,2738.1,3.65204]
[1740038865408,0.19593399,2738.6,2738.2,0.8093]
[1740038865409,3.4522,2738.5,2738.2,0.8093]
[1740038865702,0.19593399,2738.6,2738.4,3.65176]
[1740038866201,0.19593399,2738.6,2738.3,0.26]
[1740038866705,0.19593399,2738.6,2738.3,3.91186]
[1740038866904,0.19593399,2738.6,2738.3,0.26]
[1740038867091,0.19593399,2738.6,2738.4,7.30343]
[1740038867303,0.19593399,2738.6,2738.5,3.65163]
[1740038867497,0.19593399,2738.6,2738.5,4.45883]
[1740038870018,0.19593399,2738.6,2738.5,5.00883]
[1740038874108,0.19593399,2738.6,2738.5,8.00883]
[1740038874316,0.19593399,2738.6,2738.5,9.46846683]
[1740038878804,3.4522,2739.7,2738.8,0.55]
[1740038879016,7.10204,2739.9,2739.4,0.8281]
[1740038879214,7.10204,2739.9,2739.5,0.261]
[1740038879526,3.64991,2739.8,2739.5,0.261]
[1740038879735,7.10204,2739.9,2739.5,0.261]
[1740038879912,3.65005,2739.7,2739.5,0.261]
[1740038880081,0.7808,2739.6,2739.5,0.261]
[1740038880435,3.65005,2739.7,2739.5,0.261]
[1740038882919,3.4522,2739.9,2739.5,0.261]
[1740038883089,4.2622,2739.9,2739.5,0.261]
[1740038883602,3.64998,2739.8,2739.5,0.261]
[1740038884184,3.65011,2739.7,2739.5,0.261]
[1740038885393,7.91205,2739.9,2739.5,0.261]
[1740038885907,3.64991,2739.8,2739.5,0.261]
[1740038886920,3.65004,2739.7,2739.5,0.261]
[1740038887122,7.91205,2739.9,2739.5,0.261]
[1740038887325,3.6499,2739.8,2739.5,0.261]
[1740038889525,3.4522,2740.3,2739.6,0.8268]
[1740038889691,3.4522,2740.3,2740.0,0.8268]
[1740038889896,3.64959,2740.1,2740.0,0.263]
[1740038890100,3.64941,2740.2,2740.0,0.263]
[1740038890610,4.457523,2740.2,2739.9,4.01495343]
[1740038890922,3.64963,2740.0,2739.9,4.01495343]
[1740038891127,4.46493,2740.0,2739.9,4.01495343]
[1740038892840,3.0,2740.2,2739.9,4.01495343]
[1740038893127,6.4522,2740.2,2739.9,4.01495343]
[1740038893335,10.10159,2740.2,2739.9,4.01495343]
[1740038893508,3.64951,2740.1,2739.9,4.01495343]
[1740038894338,10.10156,2740.2,2739.9,4.01495343]
[1740038896429,11.52016892,2740.2,2739.9,4.01495343]
[1740038896605,3.64951,2740.1,2739.9,4.01495343]
[1740038897010,7.29912,2740.1,2739.9,4.01495343]
[1740038897215,3.64963,2740.0,2739.9,4.01495343]
[1740038897532,10.91613,2740.0,2739.9,4.01495343]
[1740038897736,12.81455489,2740.0,2739.9,4.01495343]
[1740038915268,13.36455489,2740.0,2739.9,3.43e-06]
[1740038916319,3.6511,2738.9,2738.8,0.8025]
[1740038920073,3.651,2739.0,2738.8,0.8025]
[1740038921042,3.65091,2739.1,2738.8,0.8025]
[1740038921832,7.1028,2739.3,2738.8,4.925308]
[1740038922073,3.4522,2739.3,2738.9,4.45543]
[1740038922270,7.10277,2739.3,2738.9,0.8044]
[1740038922770,7.10277,2739.3,2738.8,0.262]
[1740038922974,3.65084,2739.1,2738.8,0.262]
[1740038923123,7.30179,2739.1,2738.8,0.262]
[1740038923524,3.65084,2739.1,2738.8,0.262]
[1740038925569,3.65097,2739.0,2738.8,0.262]
[1740038926766,3.65084,2739.1,2738.8,0.262]
[1740038927361,3.65084,2739.1,2738.9,0.8161]
[1740038927629,10.75353,2739.3,2738.9,0.8161]
[1740038927843,3.65071,2739.2,2738.9,0.8161]
[1740038929774,7.10285,2739.3,2738.9,0.8161]
[1740038929946,3.6507,2739.2,2738.9,0.8161]
[1740038930640,3.4522,2739.3,2738.9,0.8161]
[1740038930947,7.10277,2739.3,2738.9,0.8161]
[1740038931148,3.4522,2739.3,2738.9,1.56422913]
[1740038931357,3.4522,2739.3,2739.0,0.8261]
[1740038933063,3.4522,2739.3,2739.1,4.40779]
[1740038934003,3.4522,2739.3,2738.9,4.39912913]
[1740038934004,3.4522,2739.3,2739.2,0.7669]
[1740038937576,7.10257,2739.5,2739.2,0.7669]
[1740038938020,3.4522,2739.5,2739.2,0.7669]
[1740038939219,3.4522,2739.5,2739.2,1.208679]
[1740038939418,3.4522,2739.5,2739.3,3.65053]
[1740038939704,3.4522,2739.5,2739.2,8.509879]
[1740038939902,3.4522,2739.5,2739.2,4.859259]
[1740038940103,3.4522,2739.5,2739.2,4.41748]
[1740038940301,7.10259,2739.5,2739.2,0.7669]
[1740038942300,3.65044,2739.4,2739.2,0.7669]
[1740038942483,7.10259,2739.5,2739.1,0.261]
[1740038942798,3.65051,2739.4,2739.1,0.261]
[1740038943006,3.65068,2739.3,2739.0,0.261]
[1740038946906,8.37633,2739.4,2739.0,0.261]
[1740038947087,3.6505,2739.4,2739.0,0.261]
[1740038947706,7.30103,2739.4,2739.0,0.261]
[1740038948083,3.6505,2739.4,2739.0,0.261]
[1740038948286,3.4522,2739.5,2739.1,4.43261]
[1740038948685,3.4522,2739.5,2739.2,3.65061]
[1740038948888,3.4522,2739.5,2739.3,0.7818]
[1740038949098,7.10256,2739.5,2739.3,0.7818]
[1740038949288,3.65053,2739.4,2739.1,0.7818]
[1740038950227,3.65083,2739.1,2739.0,0.261]
[1740038950730,3.65083,2739.1,2738.9,1.0428]
[1740038951313,3.65083,2739.1,2738.8,0.261]
[1740038952081,3.65099,2739.0,2738.7,0.8294]
[1740038952283,3.65099,2739.0,2738.7,1.0904]
[1740038955384,7.10319,2739.0,2738.7,1.0904]
[1740038955786,3.4522,2739.0,2738.7,1.0904]
[1740038957487,3.4522,2739.0,2738.9,4.4671]
[1740038957795,3.4522,2739.0,2738.9,0.816]
[1740038961313,3.4522,2739.2,2738.9,0.816]
[1740038961893,7.10291,2739.2,2738.9,0.816]
[1740038962289,3.4522,2739.2,2738.9,4.46705]
[1740038963905,3.4522,2739.2,2738.9,8.11808]
[1740038964110,3.4522,2739.2,2739.0,3.65087]
[1740038967208,3.4522,2739.5,2739.0,3.65087]
[1740038968537,3.4522,2739.5,2739.1,3.65082]
[1740038969610,3.4522,2739.5,2739.0,3.65095]
[1740038969807,7.10251,2739.5,2739.0,3.65095]
[1740038970246,3.4522,2739.5,2739.0,3.65095]
[1740038971173,3.4522,2739.5,2739.1,3.65083]
[1740038975670,4.603322,2739.5,2738.9,0.816]
[1740038975826,3.65066,2739.3,2739.0,0.26]
[1740038976020,3.65066,2739.3,2738.7,4.42517]
[1740038976250,3.65074,2739.2,2738.7,4.42517]
[1740038976558,3.65074,2739.2,2738.8,0.26]
[1740038977422,3.65066,2739.3,2738.8,0.26]
[1740038977628,4.4784,2739.1,2738.7,1.3329652]
[1740038977838,8.12934,2739.1,2738.8,0.26]
[1740038978621,4.4784,2739.1,2738.8,0.26]
[1740038978851,4.92624,2739.1,2738.8,0.26]
[1740038979033,3.65105,2739.0,2738.8,0.26]
[1740038980873,3.6511,2738.9,2738.8,0.26]
[1740038981165,7.1033,2738.9,2738.8,0.26]
[1740038990086,3.4522,2738.9,2738.8,0.26]
[1740038991379,7.1033,2738.9,2738.8,0.26]
[1740038992577,3.4522,2738.9,2738.8,0.26]
[1740038997709,3.4522,2738.9,2738.8,1.0886]
[1740038997906,3.4522,2738.9,2738.8,4.73983]
[1740038999204,3.4522,2738.9,2738.8,1.0886]
[1740038999502,3.4522,2738.9,2738.8,0.26]
[1740039000834,7.890655,2738.9,2738.8,0.26]
[1740039001322,4.239555,2738.9,2738.3,0.8201]
[1740039001483,0.7627,2738.6,2738.1,0.832]
[1740039001689,3.65177,2738.4,2738.2,0.26]
[1740039001923,3.65173,2738.5,2738.2,0.26]
[1740039002105,3.65171,2738.5,2738.2,0.26]
[1740039002825,4.458295,2738.5,2738.2,0.26]
[1740039004306,3.65177,2738.4,2738.2,0.26]
[1740039005600,7.10397,2738.4,2737.9,3.92423783]
[1740039005802,3.65191,2738.3,2738.0,0.26]
[1740039006801,7.10404,2738.4,2738.0,0.26]
[1740039007036,3.4522,2738.4,2738.0,0.26]
[1740039007397,3.6519,2738.3,2738.0,0.26]
[1740039011043,7.10406,2738.4,2738.0,0.26]
[1740039013187,3.4522,2738.4,2738.0,3.91221]
[1740039014888,7.10397,2738.4,2738.0,0.26]
[1740039015061,3.4522,2738.4,2738.0,0.26]
[1740039015480,7.10399,2738.4,2738.0,0.26]
[1740039020162,7.10399,2738.4,2738.0,3.91226]
[1740039021493,7.10399,2738.4,2738.0,0.26]
[1740039024528,3.6519,2738.3,2738.0,0.26]
[1740039024712,4.2825,2738.2,2737.9,3.09223783]
[1740039025022,3.6523,2738.0,2737.9,3.09223783]
[1740039025188,3.6523,2738.0,2737.6,0.26]
[1740039025394,3.65257,2737.8,2737.6,0.26]
[1740039025593,3.6527,2737.7,2737.6,0.26]
[1740039025798,3.65257,2737.8,2737.6,0.26]
[1740039026713,3.65236,2738.0,2737.6,0.26]
[1740039026990,3.65231,2738.0,2737.6,0.26]
[1740039027325,4.2825,2738.2,2737.9,3.65238]
[1740039027622,3.4522,2738.2,2737.9,1.33428422]
[1740039028195,3.4522,2738.4,2738.1,1.33428422]
[1740039028526,7.10396,2738.4,2737.9,1.33428422]
[1740039028823,3.65192,2738.3,2737.9,1.33428422]
[1740039029128,3.65212,2738.2,2737.8,0.7781]
[1740039029314,0.365212,2738.1,2737.8,0.7781]
[1740039029827,4.017412,2738.1,2737.8,0.7781]
[1740039030441,3.65239,2738.0,2737.8,0.26]
[1740039031731,3.65239,2738.0,2737.6,0.7882]
[1740039031934,4.017382,2738.1,2737.7,0.26]
[1740039032142,4.017382,2738.1,2737.7,1.59428422]
[1740039032435,3.65217,2738.1,2737.7,1.59428422]
[1740039032734,7.10437,2738.1,2737.7,1.59428422]
[1740039033840,3.4522,2738.1,2737.7,1.59428422]
[1740039034135,3.65232,2738.0,2737.7,1.59428422]
[1740039034299,3.65232,2738.0,2737.7,0.26]
[1740039036401,7.10437,2738.1,2737.7,0.26]
[1740039037337,3.65231,2738.0,2737.7,0.26]
[1740039040939,3.6525,2737.9,2737.7,0.26]
[1740039041419,7.30474,2738.0,2737.7,0.26]
[1740039041625,3.65244,2737.9,2737.7,0.26]
[1740039041847,3.65231,2738.0,2737.7,0.26]
[1740039042418,7.10437,2738.1,2737.7,0.26]
[1740039042808,3.4522,2738.1,2737.9,3.65236]
[1740039043646,3.4522,2738.1,2738.0,0.819]
[1740039044414,3.65183,2738.4,2738.0,0.819]
[1740039045460,3.4522,2738.5,2738.0,0.819]
[1740039045643,3.65159,2738.6,2738.1,3.65214]
[1740039046027,3.4522,2738.8,2738.2,0.805]
[1740039046369,3.65149,2738.7,2738.2,0.805]
[1740039046860,3.65143,2738.7,2738.2,4.45694]
[1740039049636,3.65157,2738.6,2738.2,0.805]
[1740039050452,3.65139,2738.7,2738.2,4.45703]
[1740039052458,3.65151,2738.6,2738.2,0.805]
[1740039052757,7.3031,2738.6,2738.2,0.805]
[1740039053056,3.65151,2738.6,2738.2,0.805]
[1740039055564,3.4522,2738.8,2738.3,1.33428422]
[1740039055741,7.10352,2738.8,2738.4,0.789]
[1740039057468,3.65138,2738.7,2738.4,0.789]
[1740039058449,3.4522,2738.8,2738.4,4.44075]
[1740039058647,3.7544,2739.2,2738.5,3.91162]
[1740039058851,3.65095,2739.1,2738.6,0.7544]
[1740039059055,7.2066,2739.2,2738.6,0.7544]
[1740039059253,3.65117,2738.9,2738.6,0.7544]
[1740039059454,7.30235,2738.9,2738.6,0.7544]
[1740039059654,3.65117,2738.9,2738.6,0.7544]
[1740039060590,3.65125,2738.8,2738.6,0.7544]
[1740039061557,3.65113,2738.9,2738.6,0.7544]
[1740039061776,3.65113,2738.9,2738.6,1.28951411]
[1740039061981,3.65113,2738.9,2738.6,0.7544]
[1740039063281,3.65126,2738.8,2738.6,0.7544]
[1740039063657,3.65102,2739.0,2738.6,0.7544]
[1740039063899,3.65112,2738.9,2738.6,0.7544]
[1740039069498,3.65103,2739.0,2738.6,0.7544]
[1740039069994,3.65103,2739.0,2738.6,1.586168]
[1740039070182,8.54088422,2739.2,2738.6,1.586168]
[1740039070385,7.30203,2739.0,2738.6,1.586168]
[1740039070697,3.65099,2739.0,2738.6,1.586168]
[1740039071293,7.30203,2739.0,2738.6,1.586168]
[1740039071464,3.65099,2739.0,2738.6,0.7544]
[1740039071660,7.30203,2739.0,2738.6,0.7544]
[1740039071908,3.65099,2739.0,2738.6,0.7544]
[1740039072202,7.10296,2739.2,2738.7,3.65129]
[1740039072425,7.10296,2739.2,2738.8,0.7904]
[1740039072711,3.65084,2739.1,2738.8,0.7904]
[1740039074511,7.30175,2739.1,2738.8,0.7904]
[1740039074723,3.4522,2739.2,2738.8,0.7904]
[1740039075720,7.10294,2739.2,2738.8,0.7904]
[1740039077036,3.4522,2739.2,2738.8,0.7904]
[1740039077219,3.65052,2739.4,2738.9,0.7664]
[1740039077386,3.65057,2739.3,2738.9,0.7664]
[1740039077728,3.0,2739.4,2739.0,3.65095]
[1740039077934,8.43648422,2739.8,2739.2,4.41701]
[1740039078098,8.43648422,2739.8,2739.3,0.26]
[1740039078300,3.4522,2739.8,2739.4,0.8209]
[1740039078504,7.10212,2739.8,2739.4,0.8209]
[1740039078799,8.43640422,2739.8,2739.4,0.8209]
[1740039079008,3.6501,2739.7,2739.4,0.8209]
[1740039079686,4.98444422,2739.6,2739.4,0.8209]
[1740039079900,4.98444422,2739.6,2739.3,0.26]
[1740039079901,3.65043,2739.4,2739.3,0.26]
[1740039080101,4.98471422,2739.4,2739.3,0.26]
[1740039080844,3.65069,2739.3,2739.1,0.7883]
[1740039081010,5.74278422,2739.2,2739.1,0.26]
[1740039081218,6.10785322,2739.2,2739.1,0.26]
[1740039082314,5.35005322,2739.2,2739.1,0.26]
[1740039082512,7.10276,2739.3,2739.1,0.26]
[1740039082810,3.4522,2739.3,2739.1,0.26]
[1740039084817,7.10278,2739.3,2739.1,0.26]
[1740039086033,3.65058,2739.3,2739.1,0.26]
[1740039086238,3.65047,2739.4,2739.1,0.26]
[1740039086439,3.65065,2739.3,2739.1,0.26]
[1740039088037,3.6507,2739.2,2739.1,0.26]
[1740039088236,3.65065,2739.3,2739.1,0.26]
[1740039088645,3.6507,2739.2,2739.1,0.26]
[1740039088840,3.65065,2739.3,2739.1,0.26]
[1740039089445,3.6507,2739.2,2739.1,0.26]
[1740039090650,3.65057,2739.3,2739.1,0.26]
[1740039091551,3.6507,2739.2,2739.1,0.26]
[1740039092936,0.730127,2739.2,2738.5,0.8023]
[1740039093137,3.6515,2738.6,2738.5,0.8023]
[1740039093343,3.6515,2738.6,2738.5,1.0623]
[1740039093520,3.6515,2738.6,2738.5,0.26]
[1740039094258,3.65163,2738.5,2738.4,8.205]
[1740039094436,8.654443,2738.5,2738.4,8.205]
[1740039094950,5.002813,2738.5,2738.2,2.15445301]
[1740039095253,7.1764651,2738.3,2738.2,1.89445301]
[1740039095557,10.1764651,2738.3,2738.2,1.89445301]
[1740039100872,13.6286651,2738.3,2738.2,1.89445301]
[1740039101073,13.6286651,2738.3,2737.3,0.26]
[1740039101074,3.6531,2737.4,2737.3,0.26]
[1740039101363,7.1053,2737.4,2737.3,0.26]
[1740039102747,3.65323,2737.3,2737.2,8.205]
[1740039103120,3.4522,2737.4,2737.2,8.205]
[1740039103326,7.1053,2737.4,2737.2,8.205]
[1740039103551,3.65323,2737.3,2737.2,8.205]
[1740039106561,3.65336,2737.2,2737.1,0.0992]
[1740039107756,6.4024251,2737.2,2737.1,0.0992]
[1740039109966,3.65336,2737.2,2737.1,0.0992]
[1740039110359,4.40916,2737.2,2737.1,0.0992]
[1740039110665,7.1582251,2737.2,2737.1,0.0992]
[1740039110961,15.17186656,2737.2,2737.1,0.0992]
[1740039114921,11.51850656,2737.2,2737.1,0.0992]
[1740039115222,3.4522,2737.2,2737.1,0.9324]
[1740039115801,3.65326,2737.3,2737.1,0.9324]
[1740039116925,3.65318,2737.4,2737.1,0.9324]
[1740039117904,3.4522,2737.7,2737.1,0.9324]
[1740039118234,3.65291,2737.6,2737.1,0.9324]
[1740039118729,3.65299,2737.5,2737.1,0.9324]
[1740039120409,3.65336,2737.2,2737.1,0.0992]
[1740039124740,7.10544,2737.3,2737.1,0.0992]
[1740039125050,7.10545,2737.3,2737.1,0.0992]
[1740039125431,3.65336,2737.2,2737.1,0.0992]
[1740039126444,3.4522,2737.3,2737.2,0.7583]
[1740039127643,6.4522,2737.6,2737.2,0.7583]
[1740039127951,3.0,2737.5,2737.2,0.7583]
[1740039128154,3.4522,2737.6,2737.3,3.65315]
[1740039128318,3.4522,2737.6,2737.3,3.65323]
[1740039128658,3.6525,2737.9,2737.4,0.7583]
[1740039129780,3.6525,2737.9,2737.4,5.217797]
[1740039132388,3.4522,2738.0,2737.5,3.65294]
[1740039132601,3.0,2738.1,2737.7,3.6526]
[1740039132899,3.65184,2738.4,2737.9,0.7747]
[1740039133069,6.65197,2738.3,2737.9,0.7747]
[1740039137911,3.0,2738.4,2737.9,0.468715]
[1740039138123,3.4522,2738.7,2738.3,4.42877]
[1740039138282,3.4522,2738.7,2738.3,0.777]
[1740039138899,7.10358,2738.7,2738.3,0.777]
[1740039139100,3.4522,2738.7,2738.4,0.7565]
[1740039139923,3.4522,2738.7,2738.5,0.7553]
[1740039140126,3.65109,2739.0,2738.6,0.261]
[1740039140306,3.65078,2739.2,2738.6,0.261]
[1740039140511,3.65078,2739.2,2738.7,4.40659]
[1740039141278,3.4522,2739.3,2738.8,3.6512]
[1740039141479,3.4522,2739.3,2739.0,0.762]
[1740039141909,7.10277,2739.3,2739.0,0.762]
[1740039142125,7.10278,2739.3,2739.0,0.762]
[1740039143221,3.6507,2739.2,2739.0,0.762]
[1740039143777,7.10278,2739.3,2739.0,0.762]
[1740039144185,10.75343,2739.3,2739.0,0.762]
[1740039144384,10.75347,2739.3,2739.0,0.762]
[1740039144696,3.65071,2739.2,2739.0,0.762]
[1740039146898,3.65083,2739.1,2738.7,1.31181796]
[1740039147098,3.6511,2739.0,2738.7,0.7969]
[1740039147397,3.65112,2738.9,2738.7,0.7969]
[1740039148338,7.30174,2739.1,2738.7,0.7969]
[1740039148652,3.65083,2739.1,2738.7,0.7969]
[1740039152353,3.65109,2739.0,2738.7,0.7969]
[1740039152518,3.65104,2739.0,2738.7,0.7969]
[1740039152717,3.65107,2739.0,2738.7,0.7969]
[1740039153376,3.65083,2739.1,2738.7,0.7969]
[1740039153657,3.65098,2739.0,2738.7,0.7969]
[1740039154758,3.65083,2739.1,2738.7,0.7969]
[1740039155834,7.30176,2739.1,2738.7,0.7969]
[1740039156040,3.65083,2739.1,2738.7,0.7969]
[1740039156240,7.30179,2739.1,2738.7,0.7969]
[1740039156546,3.65083,2739.1,2738.7,0.7969]
[1740039156723,3.65098,2739.0,2738.7,0.7969]
[1740039157252,3.65098,2739.0,2738.8,0.26]
[1740039160251,3.65092,2739.1,2738.8,0.26]
[1740039164138,3.4522,2739.2,2738.8,0.26]
[1740039164330,3.4522,2739.2,2738.9,4.40533]
[1740039169444,3.65043,2739.4,2738.9,4.40533]
[1740039173648,7.10261,2739.5,2738.9,0.7543]
[1740039173898,3.65063,2739.3,2738.9,0.7543]
[1740039176665,7.30127,2739.3,2738.9,0.7543]
[1740039177696,3.65063,2739.3,2738.9,0.7543]
[1740039179088,3.65076,2739.2,2738.9,0.7543]
[1740039180607,3.65071,2739.2,2738.9,0.7543]
[1740039180985,3.6507,2739.2,2738.9,0.7543]
[1740039181490,3.65063,2739.3,2738.9,0.7543]
[1740039181797,7.30127,2739.3,2738.9,0.7543]
[1740039182501,3.65063,2739.3,2738.9,0.7543]
[1740039182659,7.30129,2739.3,2738.9,0.7543]
[1740039182863,3.65079,2739.2,2738.9,0.7543]
[1740039185336,4.153304,2739.4,2739.0,3.6509]
[1740039185543,3.65056,2739.3,2738.9,0.7543]
[1740039185834,3.65077,2739.2,2738.9,0.7543]
[1740039186540,1.9183634,2739.2,2738.8,0.26]
[1740039186696,3.0,2739.1,2738.3,0.8186]
[1740039186894,3.0,2739.1,2738.4,0.26]
[1740039186895,3.65144,2738.7,2738.4,0.26]
[1740039187133,3.65157,2738.6,2738.4,0.26]
[1740039187605,3.65144,2738.7,2738.4,0.26]
[1740039187786,3.65143,2738.7,2738.4,0.26]
[1740039187991,3.65136,2738.7,2738.4,0.26]
[1740039188731,4.48436,2738.8,2738.4,0.26]
[1740039189434,3.65119,2738.9,2738.4,3.91166]
[1740039189822,7.89427,2739.0,2738.4,3.91166]
[1740039190570,7.10317,2739.0,2738.4,3.91166]
[1740039190754,3.65112,2738.9,2738.5,0.8275]
[1740039190937,3.4522,2739.0,2738.5,4.47909]
[1740039191280,3.4522,2739.0,2738.8,0.8275]
[1740039195381,3.4522,2739.0,2738.8,4.47871]
[1740039195875,3.4522,2739.0,2738.8,8.12987]
[1740039196078,3.4522,2739.3,2738.8,8.12987]
[1740039196565,3.4522,2739.3,2738.9,3.65107]
[1740039198852,3.4522,2739.3,2738.8,0.8275]
[1740039199050,7.10279,2739.3,2738.8,4.47863]
[1740039199246,7.10279,2739.3,2738.8,0.8275]
[1740039199440,7.10279,2739.3,2738.9,3.65108]
[1740039200670,7.10279,2739.3,2738.8,4.47873]
[1740039203932,7.10279,2739.3,2738.8,0.8275]
[1740039204081,10.75346,2739.3,2738.8,0.8275]
[1740039204683,7.10279,2739.3,2738.8,4.47871]
[1740039205183,10.75347,2739.3,2738.8,4.47871]
[1740039205681,7.10279,2739.3,2738.8,4.47871]
[1740039205982,7.10279,2739.3,2738.8,0.8275]
[1740039206162,3.65075,2739.2,2738.8,0.8275]
[1740039207192,3.65087,2739.1,2738.8,0.8275]
[1740039207373,3.6511,2738.9,2738.5,0.7749]
[1740039207582,3.65132,2738.8,2738.5,0.7749]
[1740039207756,3.65132,2738.8,2738.6,0.26]
[1740039208380,3.6511,2738.9,2738.6,0.26]
[1740039208584,3.6513,2738.8,2738.6,0.26]
[1740039209391,4.4352,2738.8,2738.3,0.7625]
[1740039209591,3.65163,2738.5,2738.4,0.26]
[1740039209757,3.65163,2738.5,2738.1,8.9643]
[1740039209962,3.65163,2738.5,2738.2,0.26]
[1740039210174,3.65144,2738.7,2738.2,1.18243]
[1740039210375,10.75457,2738.9,2738.3,4.45189]
[1740039210698,7.10335,2738.9,2738.3,4.45189]
[1740039211471,10.75453,2738.9,2738.3,4.45189]
[1740039211677,3.65134,2738.8,2738.3,4.45189]
[1740039211876,3.65137,2738.7,2738.3,0.8001]
[1740039215069,3.6515,2738.6,2738.3,0.8001]
[1740039217208,3.65142,2738.7,2738.3,0.8001]
[1740039217409,3.65133,2738.8,2738.3,0.8001]
[1740039217595,3.6515,2738.6,2738.3,0.8001]
[1740039217905,3.65133,2738.8,2738.3,1.271317]
[1740039218305,3.4522,2738.9,2738.4,3.65175]
[1740039218503,3.4522,2738.9,2738.4,4.44844]
[1740039218708,3.4522,2738.9,2738.5,3.65156]
[1740039219285,3.4522,2738.9,2738.4,0.7968]
[1740039219475,3.6513,2738.8,2738.4,0.7968]
[1740039224631,4.78516943,2739.1,2738.4,1.3147847]
[1740039224632,3.4522,2739.1,2738.4,1.3147847]
[1740039224936,3.4522,2739.1,2738.8,0.8118]
[1740039225304,7.10305,2739.1,2738.8,0.8118]
[1740039226004,3.4522,2739.1,2738.8,0.8118]
[1740039226237,3.4522,2739.1,2738.8,4.909274]
[1740039228823,7.30123,2739.3,2738.8,4.909274]
[1740039229149,7.30123,2739.3,2738.8,4.46296]
[1740039229511,3.6508,2739.2,2738.8,0.8118]
[1740039230321,4.4245,2739.2,2738.8,0.8118]
[1740039231641,3.6508,2739.2,2738.8,4.46302]
[1740039232016,3.6508,2739.2,2738.8,0.8118]
[1740039232602,3.65094,2739.1,2738.8,0.8118]
[1740039234063,3.65099,2739.0,2738.8,0.8118]
[1740039234561,3.6511,2738.9,2738.5,0.8293]
[1740039234762,3.6511,2738.9,2738.6,0.26]
[1740039238381,3.6511,2738.9,2738.5,0.8293]
[1740039238584,3.65122,2738.9,2738.7,0.26]
[1740039239431,3.65123,2738.8,2738.7,0.26]
[1740039240278,3.65122,2738.9,2738.7,0.26]
[1740039240575,3.65123,2738.8,2738.7,0.26]
[1740039241033,3.65122,2738.9,2738.7,0.26]
[1740039241435,3.65123,2738.8,2738.7,0.26]
[1740039248290,0.7834,2739.0,2738.7,0.26]
[1740039248441,7.30186,2739.1,2738.7,0.26]
[1740039248775,3.65097,2739.0,2738.7,0.26]
[1740039249883,9.92221237,2739.1,2738.7,0.26]
[1740039251279,3.651,2739.0,2738.7,0.26]
[1740039252342,6.27127237,2739.1,2738.7,0.26]
[1740039252557,4.93830294,2739.1,2738.7,0.26]
[1740039252757,3.65093,2739.1,2738.7,0.26]
[1740039252988,3.65093,2739.1,2738.7,3.91134]
[1740039253189,7.88961,2739.2,2738.7,3.91134]
[1740039254294,7.88961,2739.2,2738.8,0.8111]
[1740039254688,7.10291,2739.2,2738.8,0.8111]